Cogmind - Beta 16 @@@ ROGUE MODE // 2025.12.11 @ 23:35:41 Player: mephiles96 Result: Destroyed by Y-45 Defender with Beam Rifle Performance ------------- Evolutions (1) 500 Regions Visited (2) 400 Robots Destroyed (19) 95 Value Destroyed (384) 384 Prototype IDs (0) 0 Alien Tech Used (0) 0 Bonus (0) 0 TOTAL SCORE: 1379 Bonus ------- None Cogmind --------- Core Integrity 0/400 Matter 295/300 Energy 100/100 System Corruption 0% Temperature Cool (9) Movement Core (200) Ox3 Location -9/Materials Parts ------- > --- POWER (1) -------- (None) > --- PROPULSION (4) --- (None) > --- UTILITY (2) ------ Medium Storage Unit > --- WEAPON (2) ------- (None) > --- INVENTORY (10) --- Improved Ion Engine Aluminum Leg Improved Hover Unit Flight Unit Disposable Heat Sink Large Storage Unit Medium Matter Pod (100) Structural Scanner Peak State ------------ > --- POWER ------------ Light Ion Engine > --- PROPULSION ------- Flight Unit Flight Unit Flight Unit Flight Unit > --- UTILITY ---------- Small Storage Unit Sensor Array > --- WEAPON ----------- EM Pulse Gun Assault Rifle > --- INVENTORY -------- Aluminum Leg Aluminum Leg Improved Hover Unit Disposable Heat Sink High-capacity Storage Unit Medium Matter Pod Structural Scanner Grenade Launcher [Rating: 10] Favorites ----------- Power Light Ion Engine Engine Light Ion Engine Propulsion Flight Unit Leg Aluminum Leg Flight Unit Flight Unit Utility Small Storage Unit Device Sensor Array Storage Small Storage Unit Weapon Assault Rifle Energy Gun EM Pulse Gun Ballistic Gun Assault Rifle Launcher Grenade Launcher Build | -11 -10 -9 ------- Run | Yrd Mat Mat Slots Evolved 2 | . . 2 Power . | . . . Propulsion 2 | . . 2 Utility . | . . . Weapon . | . . . Parts Attached 16 | 6 2 8 Power 1 | 1 . . Engine 1 | 1 . . Core . | . . . Reactor . | . . . Propulsion 6 | 2 . 4 Treads . | . . . Leg 2 | 2 . . Wheel . | . . . Hover . | . . . Flight 4 | . . 4 Utility 4 | 1 1 2 Device 2 | . 1 1 Storage 2 | 1 . 1 Processor . | . . . Hackware . | . . . Protection . | . . . Artifact . | . . . Weapon 5 | 2 1 2 Energy Gun 2 | . 1 1 Energy Cannon . | . . . Ballistic Gun 2 | 2 . . Ballistic Cannon . | . . . Launcher 1 | . . 1 Special Weapon . | . . . Impact Weapon . | . . . Slashing Weapon . | . . . Piercing Weapon . | . . . Special Melee Weapon . | . . . Unidentified Prototypes . | . . . Parts Lost 10 | . . 10 Power 1 | . . 1 Propulsion 4 | . . 4 Utility 1 | . . 1 Weapon 4 | . . 4 Highest Loss Streak 10 | . . 10 To Critical Strikes . | . . . Average Backups 7 | 3 7 8 Power . | . . . Propulsion 2 | 2 2 2 Utility 2 | . 1 3 Weapon 1 | 1 2 1 Tool/Special . | . . . Unused Backups 13 | 1 5 7 Power 2 | . 1 1 Propulsion 6 | 1 3 2 Utility 4 | . . 4 Weapon 1 | . 1 . Tool/Special . | . . . Average Slot Usage (%) 94 | . 96 93 Engine 12 | . 14 10 Leg 15 | . 28 . Flight 18 | . . 39 Device 10 | . 10 11 Storage 12 | . 14 11 Energy Gun 11 | . 12 9 Ballistic Gun 13 | . 15 10 Peak Build Rating 10 | 6 7 10 Average Rating 7 | 3 6 9 On Entrance 4 | . 6 7 Avg Prop Armor Cover (%) . | . . . Naked Turns . | . . . Heaviest Build 18 | 11 13 18 Greatest Support 20 | 20 20 20 Greatest Overweight (x) 3 | 2 . 3 Average Overweight (x) . | . . . Largest Inventory Capacity 10 | 8 8 10 Average Capacity 8 | 7 8 9 Most Carried 10 | 7 8 10 Average Carried 7 | 3 7 8 Final Capacity 10 | 8 8 10 Final Carried 8 | 5 8 8 Class Distribution -------------------- 71% | Mutant 28% | Scavenger-Sprinter Dominant Class ---------------- Mutant | -10/Materials Scavenger-Sprinter | -9/Materials Resources | -11 -10 -9 ----------- Run | Yrd Mat Mat Matter Collected 495 | 190 163 142 Remotely . | . . . Salvage Created 554 | . 183 371 Parts 31 | . 19 12 Haulers Intercepted . | . . . Recyclers Shooed 3 | . 3 . Parts Field Recycled . | . . . Retrieved Matter . | . . . Parts Self-Destructed . | . . . Prevented . | . . . Parts Restored . | . . . Kills | -11 -10 -9 ------- Run | Yrd Mat Mat Combat Hostiles Destroyed 16 | . 7 9 Guns 14 | . 7 7 AOE 2 | . . 2 Classes Destroyed 7 | . 2 5 Worker 1 | . . 1 Builder 1 | . . 1 Recycler 1 | . . 1 Swarmer 9 | . 5 4 Grunt 5 | . 2 3 Duelist 1 | . . 1 Sentry 1 | . . 1 Best Kill Streak 9 | . 4 9 Combat Bots Only 6 | . 4 6 Max Kills in Single Turn 3 | . 1 3 Gunslinging . | . . . Exploded 2 | . . 2 Melee . | . . . Uniques/NPCs Destroyed . | . . . Combat | -11 -10 -9 -------- Run | Yrd Mat Mat Hostile Shots Fired 91 | . 21 70 Missed 23 | . 6 17 Hits 68 | . 15 53 Melee 1 | . . 1 Projectile 67 | . 15 52 Critical Strikes 3 | . . 3 Damage Taken 973 | . 149 824 Core 442 | . 32 410 Absorbed by Shields . | . . . Regen/Repaired (Parts) 4 | . . 4 Core Remaining (%) 93 | 100 87 . Volleys Fired 25 | . 11 14 Largest 2 | . 2 2 Hottest 80 | . 60 80 Shots Fired 42 | . 22 20 Gun 40 | . 22 18 Cannon . | . . . Launcher 2 | . . 2 Special . | . . . Kinetic 18 | . 11 7 Thermal 7 | . . 7 Explosive 2 | . . 2 Electromagnetic 15 | . 11 4 Robot Hit Streak 11 | . 4 11 Robot Miss Streak 2 | . 2 1 Penetration Max . | . . . Secondary Targets 1 | . 1 . Max Gunslinging Chain 1 | . 1 . Shots Hit Robots 28 | . 13 15 Core Hits 29 | . 9 20 Critical Kills . | . . . Critical Parts Destroyed . | . . . Critical Strikes . | . . . Melee Attacks . | . . . Impact . | . . . Slashing . | . . . Piercing . | . . . Sneak Attacks . | . . . Combat Hostiles . | . . . Follow-up Attacks . | . . . Damage Inflicted 1067 | . 205 862 Guns 372 | . 205 167 Cannons . | . . . Explosions 695 | . . 695 Melee . | . . . Ramming . | . . . Kinetic 139 | . 94 45 Thermal 527 | . . 527 Explosive 244 | . . 244 Electromagnetic 157 | . 111 46 Impact . | . . . Slashing . | . . . Piercing . | . . . Highest Corruption . | . . . Average Corruption . | . . . Corruption Purged . | . . . Corruption Blocked . | . . . Overload Shots . | . . . Overflow Damage 45 | . . 45 Projectiles . | . . . Explosions 45 | . . 45 Melee . | . . . Knockbacks . | . . . Impact . | . . . Kinetic . | . . . Secondary . | . . . Self-Inflicted Damage 86 | . . 86 Shots 3 | . . 3 Rammed . | . . . Targets Rammed . | . . . Kicked . | . . . Crushed . | . . . Highest Temperature 143 | . 30 143 Average Temperature 33 | . 13 44 Received Heat Transfer 324 | . 42 282 Siege Activations . | . . . Martial Activations . | . . . Shielding Activations . | . . . Robots Disrupted . | . . . Combat Hostiles . | . . . Robots Corrupted . | . . . Combat Hostiles . | . . . Parts Fried . | . . . Impact Corruptions . | . . . Robots Melted . | . . . Combat Hostiles . | . . . Parts Melted . | . . . Heat Transferred 522 | . . 522 Parts Sabotaged . | . . . Parts Stolen . | . . . Parts Stripped . | . . . Power Chain Reactions . | . . . Alert | -11 -10 -9 ------- Run | Yrd Mat Mat Maximum Alert Level . | . . . Low Security (%) 100 | 100 100 100 Level 1 . | . . . Level 2 . | . . . Level 3 . | . . . Level 4 . | . . . Level 5 . | . . . High Security . | . . . Max Security . | . . . Peak Influence 136 | . 116 136 Initial 35 | . . 35 Average 33 | . 42 37 Influence Increases 491 | . 177 314 Destroy 0b10 Robot/C 320 | . 140 180 Destroy 0b10 Robot/NC 15 | . . 15 Destroy Leader 40 | . 10 30 Successful Hack 16 | . 11 5 Disable Machine 30 | . . 30 Destroy Structure 25 | . 1 24 Partial Spotted 30 | . . 30 Lose Combat Pursuer 15 | . 15 . Influence Decreases 367 | . 91 276 Entered New Map 51 | . . 51 Time Decay 216 | . 91 125 Lost Part 100 | . . 100 Squads Dispatched . | . . . Investigation . | . . . Extermination . | . . . Reinforcement . | . . . Assault . | . . . Garrison . | . . . Intercept . | . . . Searches Triggered . | . . . Construction Impeded . | . . . Haulers Reinforced . | . . . Active Scanning Responses . | . . . Cargo Convoy Interrupts . | . . . Stealth | -11 -10 -9 --------- Run | Yrd Mat Mat Distress Signals . | . . . Communications Jammed . | . . . Distress Signals . | . . . Times Spotted 22 | . 10 12 Peak Tracking Total 10 | . 4 10 Tactical Retreats 1 | . 1 . Traps | -11 -10 -9 ------- Run | Yrd Mat Mat Traps Triggered . | . . . Indirectly . | . . . Trap Hack Attempts . | . . . Triggered . | . . . Disarmed 4 | . . 4 Reprogrammed . | . . . Reused . | . . . Traps Extracted . | . . . Installed . | . . . Triggered . | . . . Machines | -11 -10 -9 ---------- Run | Yrd Mat Mat Machines Disabled 2 | . . 2 Max in Single Turn 1 | . . 1 Machines Repaired . | . . . Machines Dismantled . | . . . Machines Sabotaged . | . . . Overloaded Fab Kills . | . . . Hacking | -11 -10 -9 --------- Run | Yrd Mat Mat Machines Accessed 4 | . 1 3 Terminals 2 | . 1 1 Fabricators . | . . . Repair Stations 1 | . . 1 Recycling Units . | . . . Scanalyzers 1 | . . 1 Garrison Access . | . . . Total Hacks 14 | . 3 11 Successful 11 | . 2 9 Failed 3 | . 1 2 Catastrophic . | . . . Database Lockouts . | . . . Manual 3 | . 2 1 Terminals 6 | . 3 3 Fabricators . | . . . Repair Stations 3 | . . 3 Recycling Units . | . . . Scanalyzers 5 | . . 5 Garrison Access . | . . . Terminal Hacks 4 | . 1 3 Locate Traps 1 | . . 1 Disarm Traps 1 | . . 1 Zone Layout 2 | . 1 1 Fabricator Hacks . | . . . Repair Station Hacks 2 | . . 2 Scan Component 1 | . . 1 Repair 1 | . . 1 Recycling Unit Hacks . | . . . Scanalyzer 4 | . . 4 Retrieve Study 4 | . . 4 Garrison Access Hacks . | . . . Unauthorized Hacks 1 | . 1 . Terminals 1 | . 1 . Operators 1 | . 1 . Fabricators . | . . . Repair Stations . | . . . Recycling Units . | . . . Scanalyzers . | . . . Garrison Access . | . . . Data Cores Recovered . | . . . Used . | . . . Hacking Detections 4 | . 1 3 Full Trace Events . | . . . Feedback Events . | . . . Feedback Blocked . | . . . Robot Schematics Acquired . | . . . Robots Built . | . . . Authchips . | . . . Time . | . . . Total Robot Build Rating . | . . . Part Schematics Acquired . | . . . Parts Built . | . . . Authchips . | . . . Time . | . . . Total Part Build Rating . | . . . Part Studies Acquired 4 | . . 4 Parts Repaired 1 | . . 1 Time 26 | . . 26 Parts Recycled . | . . . Recycled Matter . | . . . Retrieved Matter . | . . . Retrieved Components . | . . . Parts Scanalyzed . | . . . Part Schematics Acquired . | . . . Parts Damaged . | . . . Bothacking | -11 -10 -9 ------------ Run | Yrd Mat Mat Used RIF Installer . | . . . Robots Hacked . | . . . Non-combat . | . . . Combat . | . . . Robot Hacks Applied . | . . . Relay Couplers Released . | . . . Fabnet Peak Effective % . | . . . Robots Rewired . | . . . Allies Hacked . | . . . Hacks Repelled . | . . . Allies | -11 -10 -9 -------- Run | Yrd Mat Mat Total Allies . | . . . Largest Group . | . . . Highest-Rated Group . | . . . Highest-Rated Ally . | . . . Total Orders . | . . . Ally Attacks . | . . . Total Damage . | . . . Kills . | . . . Allies Corrupted . | . . . Allies Melted . | . . . Intel | -11 -10 -9 ------- Run | Yrd Mat Mat Active Infowar (turns) 519 | . 244 275 Sensors 268 | . . 268 Structural 251 | . 244 7 Robot Analysis Total . | . . . Derelict Logs Recovered . | . . . Drone Launches . | . . . Drone Recoveries . | . . . Exploration | -11 -10 -9 ------------- Run | Yrd Mat Mat Turns Passed 708 | 113 317 278 Spaces Moved 544 | 72 199 273 Core 35 | 33 . 2 Treads . | . . . Legs 238 | 39 199 . Wheels . | . . . Hover . | . . . Flight 271 | . . 271 Fastest Speed 31 | 50 120 31 Average Speed 76 | 126 120 32 Slowest Speed 200 | 150 120 200 Overloaded Moves . | . . . Propulsion Burnouts . | . . . Robots Hopped 4 | . . 4 Potential Cave-ins . | . . . Cave-ins Triggered . | . . . Exploration Rate (%) 21 | 5 29 29 Regions Visited 2 Branch Regions . Pre-discovered Areas . | . . . Known Exits Taken . | . . . Unknown Exits Taken 2 | 1 1 . Scrap Searched . | . . . Spaces Dug . | . . . Terrain Destroyed 28 | . . 28 Melee . | . . . Projectile . | . . . AOE 28 | . . 28 Terrain Rammed . | . . . Walls Destroyed . | . . . Machines Disabled . | . . . Actions | -11 -10 -9 --------- Run | Yrd Mat Mat Total 792 | 94 257 441 Wait 167 | 4 30 133 Move 535 | 71 198 266 Hop 3 | . . 3 Pick Up 32 | 12 10 10 Fast Attach . | . . . Attach 14 | 6 1 7 Detach 1 | . . 1 Swap 3 | . 1 2 Drop 12 | 1 6 5 Fire 25 | . 11 14 Melee . | . . . Ram . | . . . Kick . | . . . Crush . | . . . Escape Stasis . | . . . Rewire . | . . . Trap . | . . . Miscellaneous . | . . . Route ------- -11/Scrapyard -10/Materials -9/Materials History --------- Turn | Location | Event 11 | -11/Scrapyard | Discovered new exit (range 15) 114 | -11/Scrapyard | Entered Materials 319 | -10/Materials | Build established: Mutant 413 | -10/Materials | Discovered new exit (range 16) 431 | -10/Materials | Entered another Materials area 431 | -9/Materials | Evolved 2 slots: Propulsion x2 483 | -9/Materials | Repaired Flight Unit 701 | -9/Materials | Core integrity fell below 50% 704 | -9/Materials | Core integrity fell below 20% 709 | -9/Materials | Destroyed by Y-45 Defender with Beam Rifle Last Messages --------------- 00691_ Terminal disabled. 00691_ R-06 Scavenger destroyed. 00691_ G-34 Mercenary destroyed. 00692_ K-01 Serf collects debris. 00694_ U-05 Engineer destroyed. 00694_ Flight Unit+ destroyed. 00694_ Critical hit (Burn: +37). 00695_ Grenade Launcher+ destroyed. 00697_ Med. Laser destroyed. 00697_ Flight Unit+ destroyed. 00697_ Critical hit (Burn: +37). 00698_ K-01 Serf collects debris. 00700_ Critical hit (Burn: +37). 00701_ Fusion Modulator explodes. 00701_ K-01 Serf destroyed. 00701_ Destroyed Mining Laser. 00701_ Destroyed Wheel. 00702_ U-05 Engineer lays Concrete. 00706_ Sensor Array destroyed. 00706_ U-05 Engineer lays Concrete. Map ----- +----------------------------------------------------+ | ?????????????????????????????????????????????????? | | ?????????????????????????????????????????????????? | | ?????????????????????????????????????????????????? | | ?????????????????????????????????????????????????? | | ?????????????????????????????????????????????????? | | ?????????????????????????????????????????????????? | | ?????????????????????????????????????????????????? | | ?????????????????????????????????????????????????? | | ?????????????????????????????????????????????????? | | ?????????????????????????????????????????????????? | | ?????????????????????????????????????????????????? | | ?????????????????????????????????????????????????? | | ?????????????????????????????????????????????????? | | ?????????????????????????????????????????????????? | | ?????????????????????????????????????????????????? | | ?????????????????????????????????????????????????? | | ????????#############????????????????????????????? | | ????????# #????????????????????????????? | | ????????# #????????????????????????????? | | ????????# #????????????????????????????? | | ????#???# #??????#######???????????????? | | ????# ??# #??????# ####### ?????? | | ????# ?+ ######## ?????? | | ????# # + " ????? | | ???## ###+################ ?????? | | #### ## ###???????# @ # #######?????????? | | #########u ##???????????????? | | / Y ! a% #????????????????? | | ##### g %Y% #????????????????? | | #+## ### ##???# u= Y= #????????????????? | | ???###+##??# #????# #????????????????? | | ???????????# #????# #????????????????? | | ???????????# #????# !! #????????????????? | | ???????????# #????# ! ; #????????????????? | | ???????????# #????# ! ; #????????????????? | | ???????????# #????####;;;;;;; #????????????????? | | ???????????# #???????### ; #????????????????? | | ???????????# #?????????###### #????????????????? | | ???????????# #??????????????# #????????????????? | | ???????????# #?########?????# #????????????????? | | ??########## ### """ #?????# #????????????????? | | ??# # # """ #?????# #????????????????? | | ??# # # """ #?????? #????????????????? | | ??# + %+ #?????? +????????????????? | | ### # # #?????? ?????????????????? | | + # # ! #??????????????????????????? | | ### ##############??????????????????????????? | | ??# #???????????????????????????????????????? | | ??# #???????????????????????????????????????? | | ??# #???????????????????????????????????????? | +----------------------------------------------------+ Best States ------------- Heat Dissipation 28 Energy Generation 11 Energy Capacity 125 Matter Stores 300 Matter Capacity 300 Sight Range 16 Robot Scan Range 14 Terrain Scan Density 10 Evasion (%) 63 Item Schematics ----------------- None Robot Schematics ------------------ None Fabricated ------------ Nothing Repaired ---------- Flight Unit | 80% | -9/Materials Studied --------- Flight Unit | -9/Materials | Hacked Lgt. Ion Engine | -9/Materials | Hacked Grenade Launcher | -9/Materials | Hacked Assault Rifle | -9/Materials | Hacked Alien Tech Used ----------------- None Achievements -------------- None Challenges ------------ None Game ------ Seed FlyingPartitionFalx Manual? 0 Play Time 00:12:36 Cumulative 12.7 hours Start 2025.12.11 @ 23:25:24 End 2025.12.11 @ 23:35:41 Sessions 1 Manual Loads 0 Difficulty Rogue Special Mode None Game No. 15 Rogue 15 Adventurer 0 Explorer 0 Win Type - Total 0 Types 0/0/0/0/0/0/0/0/0/0 Lore% 12 Gallery% 18 Achievement% 15 Wizard Run 0 Options --------- Layout 1 ASCII 0 Keyboard 0 Movement Numpad Keybinds 1 Fullscreen 1 Font 24/Smallcaps Map View 50x35 Zoom Use 0% Tactical HUD 1 Map Filters NONE Filters NONE Steam 1 RUN: b95642cf-ac27-4b42-be63-32229ddf1c8a